[Event "Titled Tuesday Blitz October 04 Early 2022"]
[White "Andreikin, Dmitry"]
[Black "Saydaliev, Saidakbar"]
[WhiteFideId "4158814"]
[BlackFideId "14203693"]
[WhiteElo "2736"]
[BlackElo "2276"]
[Result "1-0"]
[Round "06"]
[TimeControl "180+1"]
[Date "2022.10.04"]
[WhiteClock "0:00:55"]
[BlackClock "0:00:24"]

1. Nf3 {[%clk 0:03:00]}  Nf6 {[%clk 0:02:59]} 2. g3 {[%clk 0:03:01]}  e6 {[%clk 0:02:58]} 3. Bg2 {[%clk 0:03:00]}  d5 {[%clk 0:02:58]} 4. O-O {[%clk 0:03:01]}  Be7 {[%clk 0:02:58]} 5. d3 {[%clk 0:03:01]}  c5 {[%clk 0:02:55]} 6. Bf4 {[%clk 0:03:00]}  Nc6 {[%clk 0:02:53]} 7. a4 {[%clk 0:03:00]}  O-O {[%clk 0:02:50]} 8. e4 {[%clk 0:03:00]}  dxe4 {[%clk 0:02:44]} 9. dxe4 {[%clk 0:03:00]}  Nxe4 {[%clk 0:02:44]} 10. Ne5 {[%clk 0:02:56]}  Nxe5 {[%clk 0:02:39]} 11. Bxe5 {[%clk 0:02:55]}  Nd6 {[%clk 0:02:19]} 12. Na3 {[%clk 0:02:47]}  f6 {[%clk 0:02:16]} 13. Bf4 {[%clk 0:02:43]}  e5 {[%clk 0:02:16]} 14. Qd5+ {[%clk 0:02:42]}  Kh8 {[%clk 0:02:17]} 15. Be3 {[%clk 0:02:40]}  Nf5 {[%clk 0:02:13]} 16. Nb5 {[%clk 0:02:39]}  Nxe3 {[%clk 0:02:03]} 17. fxe3 {[%clk 0:02:40]}  a6 {[%clk 0:02:03]} 18. Nc3 {[%clk 0:02:25]}  Qb6 {[%clk 0:01:49]} 19. a5 {[%clk 0:02:13]}  Qxb2 {[%clk 0:01:21]} 20. Na4 {[%clk 0:02:13]}  Qxc2 {[%clk 0:01:21]} 21. Nb6 {[%clk 0:01:28]}  Rb8 {[%clk 0:01:20]} 22. Nxc8 {[%clk 0:01:28]}  Rfxc8 {[%clk 0:01:18]} 23. Qd7 {[%clk 0:01:27]}  Bf8 {[%clk 0:01:16]} 24. Bxb7 {[%clk 0:01:26]}  Rd8 {[%clk 0:01:15]} 25. Qc7 {[%clk 0:01:26]}  Qd3 {[%clk 0:01:12]} 26. Rfe1 {[%clk 0:01:20]}  c4 {[%clk 0:00:56]} 27. Bxa6 {[%clk 0:01:16]}  Bb4 {[%clk 0:00:55]} 28. Bxc4 {[%clk 0:01:06]}  Rbc8 {[%clk 0:00:24]} 29. Qxc8 {[%clk 0:00:55]} 1-0


[Site "https://www.chess.com"]

[Event "Titled Tuesday Blitz October 04 Early 2022"]
[White "Baskakov, Egor"]
[Black "Wong, Yinn Long"]
[WhiteFideId "24197866"]
[BlackFideId "5707684"]
[WhiteElo "2211"]
[BlackElo "2271"]
[Result "1-0"]
[Round "06"]
[TimeControl "180+1"]
[Date "2022.10.04"]
[WhiteClock "0:01:27"]
[BlackClock "0:00:03"]

1. e4 {[%clk 0:03:00]}  e6 {[%clk 0:03:00]} 2. Nc3 {[%clk 0:03:00]}  d5 {[%clk 0:03:01]} 3. g3 {[%clk 0:03:01]}  Nf6 {[%clk 0:02:45]} 4. Bg2 {[%clk 0:02:56]}  d4 {[%clk 0:02:45]} 5. Nce2 {[%clk 0:02:56]}  e5 {[%clk 0:02:38]} 6. d3 {[%clk 0:02:55]}  c5 {[%clk 0:02:32]} 7. h3 {[%clk 0:02:56]}  Nc6 {[%clk 0:02:31]} 8. f4 {[%clk 0:02:56]}  exf4 {[%clk 0:02:02]} 9. gxf4 {[%clk 0:02:54]}  c4 {[%clk 0:01:54]} 10. Nf3 {[%clk 0:02:54]}  cxd3 {[%clk 0:01:37]} 11. cxd3 {[%clk 0:02:55]}  Bb4+ {[%clk 0:01:37]} 12. Bd2 {[%clk 0:02:55]}  Bxd2+ {[%clk 0:01:31]} 13. Qxd2 {[%clk 0:02:56]}  O-O {[%clk 0:01:32]} 14. O-O {[%clk 0:02:55]}  Ne8 {[%clk 0:01:23]} 15. Rac1 {[%clk 0:02:50]}  f5 {[%clk 0:01:23]} 16. e5 {[%clk 0:02:50]}  Nc7 {[%clk 0:01:24]} 17. Rc4 {[%clk 0:02:43]}  Be6 {[%clk 0:01:23]} 18. Ra4 {[%clk 0:02:42]}  b5 {[%clk 0:01:19]} 19. Ra3 {[%clk 0:02:42]}  Bd5 {[%clk 0:01:07]} 20. Rc1 {[%clk 0:02:34]}  a5 {[%clk 0:01:02]} 21. b4 {[%clk 0:02:24]}  axb4 {[%clk 0:00:57]} 22. Rxa8 {[%clk 0:02:23]}  Qxa8 {[%clk 0:00:58]} 23. Nexd4 {[%clk 0:02:18]}  Qa7 {[%clk 0:00:47]} 24. Qf2 {[%clk 0:02:15]}  Nxd4 {[%clk 0:00:41]} 25. Qxd4 {[%clk 0:02:06]}  Qa8 {[%clk 0:00:22]} 26. Rxc7 {[%clk 0:02:02]}  Bxf3 {[%clk 0:00:21]} 27. e6 {[%clk 0:02:03]}  Rf6 {[%clk 0:00:18]} 28. Rd7 {[%clk 0:01:54]}  Bxg2 {[%clk 0:00:14]} 29. Rd8+ {[%clk 0:01:53]}  Rf8 {[%clk 0:00:14]} 30. e7 {[%clk 0:01:52]}  Re8 {[%clk 0:00:08]} 31. Rxa8 {[%clk 0:01:50]}  Bxa8 {[%clk 0:00:09]} 32. Qe5 {[%clk 0:01:35]}  g6 {[%clk 0:00:05]} 33. Qe6+ {[%clk 0:01:33]}  Kg7 {[%clk 0:00:05]} 34. d4 {[%clk 0:01:34]}  Be4 {[%clk 0:00:02]} 35. d5 {[%clk 0:01:33]}  Bxd5 {[%clk 0:00:02]} 36. Qxd5 {[%clk 0:01:32]}  Rxe7 {[%clk 0:00:03]} 37. Qd4+ {[%clk 0:01:29]}  Kh6 {[%clk 0:00:03]} 38. Qxb4 {[%clk 0:01:29]}  Re4 {[%clk 0:00:02]} 39. Qxb5 {[%clk 0:01:29]}  Rxf4 {[%clk 0:00:02]} 40. a4 {[%clk 0:01:30]}  Re4 {[%clk 0:00:02]} 41. a5 {[%clk 0:01:30]}  Kg5 {[%clk 0:00:01]} 42. a6 {[%clk 0:01:30]}  Kf4 {[%clk 0:00:02]} 43. a7 {[%clk 0:01:28]}  Kg3 {[%clk 0:00:03]} 44. Qb3+ {[%clk 0:01:27]} 1-0


[Site "https://www.chess.com"]

[Event "Titled Tuesday Blitz October 04 Early 2022"]
[White "Beerdsen, Thomas"]
[Black "Safarli, Eltaj"]
[WhiteFideId "1030108"]
[BlackFideId "13402129"]
[WhiteElo "2567"]
[BlackElo "2634"]
[Result "1/2-1/2"]
[Round "06"]
[TimeControl "180+1"]
[Date "2022.10.04"]
[WhiteClock "0:00:07"]
[BlackClock "0:00:16"]

1. e4 {[%clk 0:02:59]}  e5 {[%clk 0:02:58]} 2. Nf3 {[%clk 0:02:59]}  Nc6 {[%clk 0:02:56]} 3. d4 {[%clk 0:03:00]}  exd4 {[%clk 0:02:56]} 4. Bc4 {[%clk 0:03:00]}  Bc5 {[%clk 0:02:50]} 5. O-O {[%clk 0:02:58]}  d6 {[%clk 0:02:47]} 6. c3 {[%clk 0:02:55]}  Bg4 {[%clk 0:02:38]} 7. Nbd2 {[%clk 0:02:25]}  dxc3 {[%clk 0:02:05]} 8. bxc3 {[%clk 0:02:26]}  Nf6 {[%clk 0:02:05]} 9. h3 {[%clk 0:02:19]}  Bh5 {[%clk 0:02:04]} 10. Nb3 {[%clk 0:02:14]}  Bb6 {[%clk 0:02:01]} 11. Bg5 {[%clk 0:02:13]}  h6 {[%clk 0:02:00]} 12. Bh4 {[%clk 0:02:12]}  g5 {[%clk 0:01:59]} 13. Bg3 {[%clk 0:02:12]}  Nxe4 {[%clk 0:01:52]} 14. Re1 {[%clk 0:02:09]}  f5 {[%clk 0:01:52]} 15. Qd5 {[%clk 0:01:52]}  Qf6 {[%clk 0:01:51]} 16. a4 {[%clk 0:01:21]}  a6 {[%clk 0:01:47]} 17. a5 {[%clk 0:01:16]}  Ba7 {[%clk 0:01:47]} 18. Nbd2 {[%clk 0:00:55]}  O-O-O {[%clk 0:01:34]} 19. Bxa6 {[%clk 0:00:50]}  Kd7 {[%clk 0:00:36]} 20. Rxe4 {[%clk 0:00:44]}  fxe4 {[%clk 0:00:37]} 21. Nxe4 {[%clk 0:00:45]}  Qf7 {[%clk 0:00:29]} 22. Bxb7 {[%clk 0:00:38]}  Qxd5 {[%clk 0:00:23]} 23. Nf6+ {[%clk 0:00:39]}  Ke6 {[%clk 0:00:23]} 24. Nxd5 {[%clk 0:00:40]}  Kxd5 {[%clk 0:00:23]} 25. Rd1+ {[%clk 0:00:40]}  Kc5 {[%clk 0:00:19]} 26. c4 {[%clk 0:00:34]}  Bxf3 {[%clk 0:00:17]} 27. gxf3 {[%clk 0:00:34]}  Nd4 {[%clk 0:00:18]} 28. a6 {[%clk 0:00:28]}  Rhe8 {[%clk 0:00:15]} 29. Kg2 {[%clk 0:00:29]}  c6 {[%clk 0:00:13]} 30. f4 {[%clk 0:00:26]}  Ne2 {[%clk 0:00:12]} 31. Bh2 {[%clk 0:00:24]}  Nxf4+ {[%clk 0:00:12]} 32. Kf1 {[%clk 0:00:23]}  d5 {[%clk 0:00:08]} 33. cxd5 {[%clk 0:00:22]}  cxd5 {[%clk 0:00:09]} 34. Rc1+ {[%clk 0:00:23]}  Kd6 {[%clk 0:00:09]} 35. h4 {[%clk 0:00:24]}  d4 {[%clk 0:00:08]} 36. Rc6+ {[%clk 0:00:24]}  Ke5 {[%clk 0:00:07]} 37. Rxh6 {[%clk 0:00:25]}  d3 {[%clk 0:00:07]} 38. Ke1 {[%clk 0:00:20]}  d2+ {[%clk 0:00:06]} 39. Kd1 {[%clk 0:00:20]}  Rh8 {[%clk 0:00:03]} 40. hxg5 {[%clk 0:00:18]}  Rxh6 {[%clk 0:00:03]} 41. gxh6 {[%clk 0:00:18]}  Rh8 {[%clk 0:00:04]} 42. Kxd2 {[%clk 0:00:18]}  Rxh6 {[%clk 0:00:04]} 43. Bg3 {[%clk 0:00:19]}  Rh8 {[%clk 0:00:04]} 44. Kc3 {[%clk 0:00:19]}  Kf5 {[%clk 0:00:03]} 45. Kc4 {[%clk 0:00:19]}  Kg5 {[%clk 0:00:03]} 46. Kb5 {[%clk 0:00:19]}  Rh6 {[%clk 0:00:03]} 47. Bc6 {[%clk 0:00:18]}  Re6 {[%clk 0:00:03]} 48. Bb7 {[%clk 0:00:17]}  Re5+ {[%clk 0:00:03]} 49. Kc6 {[%clk 0:00:17]}  Re2 {[%clk 0:00:03]} 50. Kc7 {[%clk 0:00:16]}  Rb2 {[%clk 0:00:04]} 51. Bc6 {[%clk 0:00:13]}  Ne6+ {[%clk 0:00:04]} 52. Kd7 {[%clk 0:00:12]}  Nf4 {[%clk 0:00:04]} 53. Kc8 {[%clk 0:00:09]}  Rb8+ {[%clk 0:00:02]} 54. Kc7 {[%clk 0:00:09]}  Rb3 {[%clk 0:00:03]} 55. Kd6 {[%clk 0:00:09]}  Nd3 {[%clk 0:00:04]} 56. Bd5 {[%clk 0:00:08]}  Rb2 {[%clk 0:00:03]} 57. Kc7 {[%clk 0:00:06]}  Nxf2 {[%clk 0:00:02]} 58. Bb7 {[%clk 0:00:06]}  Bb6+ {[%clk 0:00:02]} 59. Kb8 {[%clk 0:00:06]}  Ra2 {[%clk 0:00:03]} 60. Ka8 {[%clk 0:00:05]}  Nd3 {[%clk 0:00:03]} 61. Bb8 {[%clk 0:00:06]}  Nc5 {[%clk 0:00:03]} 62. Bd6 {[%clk 0:00:03]}  Nxa6 {[%clk 0:00:02]} 63. Bxa6 {[%clk 0:00:04]}  Rxa6+ {[%clk 0:00:03]} 64. Kb7 {[%clk 0:00:05]}  Ra4 {[%clk 0:00:02]} 65. Kxb6 {[%clk 0:00:06]}  Kf5 {[%clk 0:00:03]} 66. Kb5 {[%clk 0:00:04]}  Re4 {[%clk 0:00:04]} 67. Kc6 {[%clk 0:00:04]}  Re2 {[%clk 0:00:05]} 68. Kb7 {[%clk 0:00:05]}  Ke6 {[%clk 0:00:06]} 69. Bc5 {[%clk 0:00:05]}  Kd5 {[%clk 0:00:06]} 70. Ba7 {[%clk 0:00:05]}  Rc2 {[%clk 0:00:07]} 71. Ka8 {[%clk 0:00:05]}  Kc6 {[%clk 0:00:07]} 72. Bb8 {[%clk 0:00:06]}  Ra2+ {[%clk 0:00:07]} 73. Ba7 {[%clk 0:00:06]}  Rb2 {[%clk 0:00:08]} 74. Be3 {[%clk 0:00:06]}  Rb1 {[%clk 0:00:09]} 75. Bf2 {[%clk 0:00:06]}  Rf1 {[%clk 0:00:10]} 76. Be3 {[%clk 0:00:06]}  Rf8+ {[%clk 0:00:10]} 77. Ka7 {[%clk 0:00:06]}  Re8 {[%clk 0:00:11]} 78. Bf2 {[%clk 0:00:05]}  Re2 {[%clk 0:00:12]} 79. Bg1 {[%clk 0:00:03]}  Rd2 {[%clk 0:00:12]} 80. Be3 {[%clk 0:00:03]}  Rb2 {[%clk 0:00:12]} 81. Bd4 {[%clk 0:00:03]}  Rc2 {[%clk 0:00:12]} 82. Be3 {[%clk 0:00:03]}  Re2 {[%clk 0:00:12]} 83. Bd4 {[%clk 0:00:04]}  Kc7 {[%clk 0:00:12]} 84. Ka8 {[%clk 0:00:04]}  Re8+ {[%clk 0:00:11]} 85. Ka7 {[%clk 0:00:04]}  Re4 {[%clk 0:00:12]} 86. Bb6+ {[%clk 0:00:03]}  Kc6 {[%clk 0:00:13]} 87. Bf2 {[%clk 0:00:04]}  Rf4 {[%clk 0:00:13]} 88. Bg1 {[%clk 0:00:04]}  Ra4+ {[%clk 0:00:13]} 89. Kb8 {[%clk 0:00:04]}  Ra1 {[%clk 0:00:14]} 90. Bf2 {[%clk 0:00:04]}  Rf1 {[%clk 0:00:14]} 91. Be3 {[%clk 0:00:05]}  Rf7 {[%clk 0:00:15]} 92. Bd4 {[%clk 0:00:05]}  Rb7+ {[%clk 0:00:15]} 93. Ka8 {[%clk 0:00:05]}  Rb5 {[%clk 0:00:15]} 94. Bf2 {[%clk 0:00:06]}  Kc7 {[%clk 0:00:16]} 95. Bg3+ {[%clk 0:00:06]}  Kc8 {[%clk 0:00:16]} 96. Bf2 {[%clk 0:00:06]}  Rb2 {[%clk 0:00:15]} 97. Bd4 {[%clk 0:00:06]}  Re2 {[%clk 0:00:15]} 98. Bg1 {[%clk 0:00:06]}  Kc7 {[%clk 0:00:16]} 99. Bd4 {[%clk 0:00:06]}  Kc6 {[%clk 0:00:17]} 100. Bg1 {[%clk 0:00:05]}  Rg2 {[%clk 0:00:16]} 101. Be3 {[%clk 0:00:05]}  Rg8+ {[%clk 0:00:15]} 102. Ka7 {[%clk 0:00:05]}  Rf8 {[%clk 0:00:16]} 103. Bd4 {[%clk 0:00:05]}  Rf7+ {[%clk 0:00:14]} 104. Ka8 {[%clk 0:00:06]}  Rb7 {[%clk 0:00:13]} 105. Bf2 {[%clk 0:00:06]}  Kc7 {[%clk 0:00:13]} 106. Bg3+ {[%clk 0:00:06]}  Kb6 {[%clk 0:00:13]} 107. Bf2+ {[%clk 0:00:07]}  Ka6 {[%clk 0:00:14]} 108. Bg3 {[%clk 0:00:07]}  Ra7+ {[%clk 0:00:14]} 109. Kb8 {[%clk 0:00:07]}  Rg7 {[%clk 0:00:15]} 110. Be5 {[%clk 0:00:07]}  Kb6 {[%clk 0:00:16]} 111. Bd4+ {[%clk 0:00:06]}  Kc6 {[%clk 0:00:16]} 112. Bxg7 {[%clk 0:00:07]} 1/2-1/2


[Site "https://www.chess.com"]

[Event "Titled Tuesday Blitz October 04 Early 2022"]
[White "Boros, Denes"]
[Black "Tang, Andrew"]
[WhiteFideId "722340"]
[BlackFideId "2059630"]
[WhiteElo "2464"]
[BlackElo "2581"]
[Result "1-0"]
[Round "06"]
[TimeControl "180+1"]
[Date "2022.10.04"]
[WhiteClock "0:00:06"]
[BlackClock "0:00:01"]

1. Nf3 {[%clk 0:03:00]}  d5 {[%clk 0:02:59]} 2. b3 {[%clk 0:02:54]}  c5 {[%clk 0:02:58]} 3. e3 {[%clk 0:02:54]}  Nc6 {[%clk 0:02:58]} 4. Bb5 {[%clk 0:02:54]}  Qb6 {[%clk 0:02:57]} 5. c4 {[%clk 0:02:52]}  dxc4 {[%clk 0:02:55]} 6. Bxc4 {[%clk 0:02:51]}  Nf6 {[%clk 0:02:54]} 7. Nc3 {[%clk 0:02:50]}  Bg4 {[%clk 0:02:53]} 8. h3 {[%clk 0:02:48]}  Bh5 {[%clk 0:02:52]} 9. Bb2 {[%clk 0:02:22]}  e6 {[%clk 0:02:52]} 10. Ne2 {[%clk 0:02:20]}  Na5 {[%clk 0:02:18]} 11. Bxf6 {[%clk 0:02:13]}  gxf6 {[%clk 0:02:15]} 12. Nf4 {[%clk 0:02:13]}  Bg6 {[%clk 0:02:13]} 13. O-O {[%clk 0:02:06]}  Nxc4 {[%clk 0:01:43]} 14. bxc4 {[%clk 0:02:07]}  Be4 {[%clk 0:01:43]} 15. d3 {[%clk 0:02:04]}  Bc6 {[%clk 0:01:43]} 16. Nh5 {[%clk 0:01:59]}  Be7 {[%clk 0:01:43]} 17. Ng7+ {[%clk 0:01:37]}  Kf8 {[%clk 0:01:42]} 18. Nh5 {[%clk 0:01:37]}  Rg8 {[%clk 0:01:41]} 19. Qe2 {[%clk 0:01:35]}  Rd8 {[%clk 0:01:39]} 20. e4 {[%clk 0:01:35]}  Qc7 {[%clk 0:00:55]} 21. Qe3 {[%clk 0:01:34]}  Rg6 {[%clk 0:00:55]} 22. Nf4 {[%clk 0:01:22]}  Rg8 {[%clk 0:00:49]} 23. Nh5 {[%clk 0:01:22]}  Ke8 {[%clk 0:00:49]} 24. Rad1 {[%clk 0:01:09]}  Qa5 {[%clk 0:00:26]} 25. g3 {[%clk 0:00:48]}  Qxa2 {[%clk 0:00:23]} 26. e5 {[%clk 0:00:44]}  Qb2 {[%clk 0:00:11]} 27. exf6 {[%clk 0:00:38]}  Bd6 {[%clk 0:00:09]} 28. d4 {[%clk 0:00:21]}  cxd4 {[%clk 0:00:04]} 29. Nxd4 {[%clk 0:00:16]}  Qb6 {[%clk 0:00:05]} 30. Ng7+ {[%clk 0:00:10]}  Kd7 {[%clk 0:00:04]} 31. c5 {[%clk 0:00:10]}  Qxc5 {[%clk 0:00:04]} 32. Rc1 {[%clk 0:00:07]}  Qb6 {[%clk 0:00:05]} 33. Rfd1 {[%clk 0:00:07]}  Kc7 {[%clk 0:00:04]} 34. Rb1 {[%clk 0:00:05]}  Qa5 {[%clk 0:00:03]} 35. Ra1 {[%clk 0:00:05]}  Qd5 {[%clk 0:00:03]} 36. Nxc6 {[%clk 0:00:05]}  Qxc6 {[%clk 0:00:03]} 37. Rdc1 {[%clk 0:00:06]}  a6 {[%clk 0:00:02]} 38. Rab1 {[%clk 0:00:05]}  Rd7 {[%clk 0:00:01]} 39. Qb6+ {[%clk 0:00:05]}  Kc8 {[%clk 0:00:01]} 40. Rxc6+ {[%clk 0:00:06]}  bxc6 {[%clk 0:00:02]} 41. Qxc6+ {[%clk 0:00:06]}  Bc7 {[%clk 0:00:01]} 42. Qa8+ {[%clk 0:00:06]} 1-0


[Site "https://www.chess.com"]

[Event "Titled Tuesday Blitz October 04 Early 2022"]
[White "Bortnyk, Olexandr"]
[Black "Hakobyan, Aram"]
[WhiteFideId "14120828"]
[BlackFideId "13306677"]
[WhiteElo "2723"]
[BlackElo "2563"]
[Result "1/2-1/2"]
[Round "06"]
[TimeControl "180+1"]
[Date "2022.10.04"]
[WhiteClock "0:00:04"]
[BlackClock "0:00:04"]

1. d4 {[%clk 0:02:58]}  Nf6 {[%clk 0:02:58]} 2. Nc3 {[%clk 0:02:57]}  d5 {[%clk 0:02:59]} 3. Bf4 {[%clk 0:02:57]}  c5 {[%clk 0:02:59]} 4. e4 {[%clk 0:02:57]}  Nxe4 {[%clk 0:02:59]} 5. Nxe4 {[%clk 0:02:57]}  dxe4 {[%clk 0:03:00]} 6. dxc5 {[%clk 0:02:58]}  Qa5+ {[%clk 0:03:00]} 7. Qd2 {[%clk 0:02:58]}  Qxc5 {[%clk 0:02:25]} 8. O-O-O {[%clk 0:02:57]}  Nc6 {[%clk 0:02:25]} 9. Be3 {[%clk 0:02:53]}  Qd6 {[%clk 0:02:05]} 10. Qc3 {[%clk 0:02:45]}  Qf6 {[%clk 0:02:04]} 11. Qd2 {[%clk 0:02:28]}  Bg4 {[%clk 0:01:48]} 12. f3 {[%clk 0:02:06]}  Rd8 {[%clk 0:01:48]} 13. Qe1 {[%clk 0:02:03]}  Rxd1+ {[%clk 0:01:45]} 14. Qxd1 {[%clk 0:02:04]}  exf3 {[%clk 0:01:42]} 15. Nxf3 {[%clk 0:02:02]}  g6 {[%clk 0:01:35]} 16. h3 {[%clk 0:01:34]}  Qe6 {[%clk 0:00:57]} 17. Bf4 {[%clk 0:00:38]}  Bxf3 {[%clk 0:00:54]} 18. Qxf3 {[%clk 0:00:39]}  Bg7 {[%clk 0:00:43]} 19. Bb5 {[%clk 0:00:16]}  O-O {[%clk 0:00:44]} 20. Bxc6 {[%clk 0:00:16]}  bxc6 {[%clk 0:00:34]} 21. Kb1 {[%clk 0:00:16]}  Qf6 {[%clk 0:00:28]} 22. c3 {[%clk 0:00:15]}  e5 {[%clk 0:00:27]} 23. Be3 {[%clk 0:00:15]}  Qe7 {[%clk 0:00:27]} 24. Rd1 {[%clk 0:00:12]}  e4 {[%clk 0:00:24]} 25. Qe2 {[%clk 0:00:12]}  Rb8 {[%clk 0:00:23]} 26. Qc4 {[%clk 0:00:11]}  Qb7 {[%clk 0:00:15]} 27. Rd2 {[%clk 0:00:07]}  a5 {[%clk 0:00:15]} 28. a4 {[%clk 0:00:04]}  h5 {[%clk 0:00:14]} 29. Ka2 {[%clk 0:00:04]}  Re8 {[%clk 0:00:12]} 30. Rd6 {[%clk 0:00:03]}  Rb8 {[%clk 0:00:09]} 31. b3 {[%clk 0:00:02]}  Qe7 {[%clk 0:00:07]} 32. Rxg6 {[%clk 0:00:02]}  Kh7 {[%clk 0:00:04]} 33. Rxc6 {[%clk 0:00:02]}  Bf8 {[%clk 0:00:05]} 34. Bc5 {[%clk 0:00:02]}  Qd7 {[%clk 0:00:05]} 35. Qxe4+ {[%clk 0:00:02]}  f5 {[%clk 0:00:05]} 36. Qf3 {[%clk 0:00:01]}  Qd2+ {[%clk 0:00:05]} 37. Ka3 {[%clk 0:00:01]}  Qc1+ {[%clk 0:00:05]} 38. Ka2 {[%clk 0:00:01]}  Qc2+ {[%clk 0:00:06]} 39. Ka1 {[%clk 0:00:02]}  Qc1+ {[%clk 0:00:03]} 40. Ka2 {[%clk 0:00:03]}  Qc2+ {[%clk 0:00:03]} 41. Ka1 {[%clk 0:00:03]}  Qc1+ {[%clk 0:00:04]} 42. Ka2 {[%clk 0:00:04]} 1/2-1/2


[Site "https://www.chess.com"]

[Event "Titled Tuesday Blitz October 04 Early 2022"]
[White "Eljanov, Pavel"]
[Black "Visakh N R"]
[WhiteFideId "14102951"]
[BlackFideId "25012223"]
[WhiteElo "2601"]
[BlackElo "2466"]
[Result "1-0"]
[Round "06"]
[TimeControl "180+1"]
[Date "2022.10.04"]
[WhiteClock "0:00:15"]
[BlackClock "0:00:07"]

1. c4 {[%clk 0:03:00]}  Nf6 {[%clk 0:02:56]} 2. g3 {[%clk 0:03:01]}  e6 {[%clk 0:02:55]} 3. Bg2 {[%clk 0:03:01]}  d5 {[%clk 0:02:56]} 4. d4 {[%clk 0:02:59]}  Bb4+ {[%clk 0:02:50]} 5. Nd2 {[%clk 0:02:57]}  O-O {[%clk 0:02:48]} 6. Nf3 {[%clk 0:02:57]}  c5 {[%clk 0:02:43]} 7. dxc5 {[%clk 0:02:51]}  dxc4 {[%clk 0:02:42]} 8. O-O {[%clk 0:02:46]}  Nc6 {[%clk 0:02:35]} 9. Nxc4 {[%clk 0:02:44]}  Bxc5 {[%clk 0:02:34]} 10. Bf4 {[%clk 0:02:22]}  Qe7 {[%clk 0:02:32]} 11. Bd6 {[%clk 0:02:15]}  Bxd6 {[%clk 0:02:31]} 12. Qxd6 {[%clk 0:02:16]}  Qxd6 {[%clk 0:01:58]} 13. Nxd6 {[%clk 0:02:16]}  Rd8 {[%clk 0:01:59]} 14. Rfd1 {[%clk 0:02:14]}  Nd5 {[%clk 0:01:59]} 15. Nxc8 {[%clk 0:01:46]}  Raxc8 {[%clk 0:02:00]} 16. Rac1 {[%clk 0:01:45]}  h6 {[%clk 0:01:49]} 17. a3 {[%clk 0:01:44]}  Kf8 {[%clk 0:01:48]} 18. Kf1 {[%clk 0:01:33]}  Ke7 {[%clk 0:01:47]} 19. Ke1 {[%clk 0:01:33]}  Na5 {[%clk 0:01:47]} 20. Nd4 {[%clk 0:01:28]}  Rxc1 {[%clk 0:01:05]} 21. Rxc1 {[%clk 0:01:29]}  Rd7 {[%clk 0:00:52]} 22. b4 {[%clk 0:01:23]}  Nc6 {[%clk 0:00:15]} 23. Nxc6+ {[%clk 0:01:22]}  bxc6 {[%clk 0:00:16]} 24. Rxc6 {[%clk 0:01:23]}  Nb6 {[%clk 0:00:16]} 25. Be4 {[%clk 0:01:07]}  g5 {[%clk 0:00:15]} 26. Bc2 {[%clk 0:01:07]}  Rb7 {[%clk 0:00:10]} 27. Kd2 {[%clk 0:01:01]}  Nd7 {[%clk 0:00:09]} 28. Kc3 {[%clk 0:00:48]}  Ne5 {[%clk 0:00:09]} 29. Rc5 {[%clk 0:00:41]}  Ng4 {[%clk 0:00:09]} 30. f3 {[%clk 0:00:41]}  Nxh2 {[%clk 0:00:09]} 31. Be4 {[%clk 0:00:25]}  Rd7 {[%clk 0:00:09]} 32. a4 {[%clk 0:00:24]}  Nf1 {[%clk 0:00:09]} 33. g4 {[%clk 0:00:22]}  Ne3 {[%clk 0:00:08]} 34. b5 {[%clk 0:00:20]}  Nd1+ {[%clk 0:00:08]} 35. Kb3 {[%clk 0:00:20]}  Nf2 {[%clk 0:00:06]} 36. Bc6 {[%clk 0:00:20]}  Rd2 {[%clk 0:00:07]} 37. a5 {[%clk 0:00:19]}  Nd1 {[%clk 0:00:07]} 38. Rc2 {[%clk 0:00:18]}  Rd4 {[%clk 0:00:06]} 39. b6 {[%clk 0:00:17]}  axb6 {[%clk 0:00:07]} 40. a6 {[%clk 0:00:17]}  Ne3 {[%clk 0:00:08]} 41. a7 {[%clk 0:00:17]}  Nxc2 {[%clk 0:00:08]} 42. a8=Q {[%clk 0:00:18]}  Rd2 {[%clk 0:00:08]} 43. Qe8+ {[%clk 0:00:15]}  Kd6 {[%clk 0:00:07]} 44. Qd8+ {[%clk 0:00:14]}  Kxc6 {[%clk 0:00:07]} 45. Qxd2 {[%clk 0:00:15]} 1-0


[Site "https://www.chess.com"]

[Event "Titled Tuesday Blitz October 04 Early 2022"]
[White "Gabrielian, Artur"]
[Black "Guzman, Christopher"]
[WhiteFideId "4131002"]
[BlackFideId "6405096"]
[WhiteElo "2432"]
[BlackElo "2272"]
[Result "1-0"]
[Round "06"]
[TimeControl "180+1"]
[Date "2022.10.04"]
[WhiteClock "0:01:11"]
[BlackClock "0:01:16"]

1. e4 {[%clk 0:03:00]}  c6 {[%clk 0:02:52]} 2. d4 {[%clk 0:03:00]}  d5 {[%clk 0:02:51]} 3. e5 {[%clk 0:03:01]}  Bf5 {[%clk 0:02:50]} 4. h4 {[%clk 0:03:00]}  h5 {[%clk 0:02:50]} 5. Bd3 {[%clk 0:03:00]}  Bxd3 {[%clk 0:02:49]} 6. Qxd3 {[%clk 0:03:01]}  Qa5+ {[%clk 0:02:50]} 7. Nd2 {[%clk 0:03:01]}  e6 {[%clk 0:02:47]} 8. Nf3 {[%clk 0:03:00]}  Nh6 {[%clk 0:02:47]} 9. O-O {[%clk 0:02:59]}  Nf5 {[%clk 0:02:47]} 10. a4 {[%clk 0:02:56]}  Be7 {[%clk 0:02:47]} 11. Nb3 {[%clk 0:02:56]}  Qa6 {[%clk 0:02:44]} 12. Qd1 {[%clk 0:02:56]}  Nxh4 {[%clk 0:02:35]} 13. Nxh4 {[%clk 0:02:54]}  Bxh4 {[%clk 0:02:35]} 14. Nc5 {[%clk 0:02:54]}  Qb6 {[%clk 0:02:35]} 15. Ra3 {[%clk 0:02:54]}  Qc7 {[%clk 0:02:31]} 16. Rh3 {[%clk 0:02:53]}  b6 {[%clk 0:02:23]} 17. Nxe6 {[%clk 0:02:47]}  fxe6 {[%clk 0:02:22]} 18. Rxh4 {[%clk 0:02:47]}  Qf7 {[%clk 0:02:20]} 19. Bg5 {[%clk 0:02:44]}  Nd7 {[%clk 0:02:19]} 20. f4 {[%clk 0:02:38]}  Qg6 {[%clk 0:02:18]} 21. g4 {[%clk 0:02:31]}  Nf8 {[%clk 0:02:11]} 22. Qd2 {[%clk 0:02:21]}  Kd7 {[%clk 0:02:08]} 23. f5 {[%clk 0:02:19]}  Qf7 {[%clk 0:01:58]} 24. Qb4 {[%clk 0:01:58]}  Kc8 {[%clk 0:01:34]} 25. fxe6 {[%clk 0:01:50]}  Qe8 {[%clk 0:01:26]} 26. e7 {[%clk 0:01:21]}  Ne6 {[%clk 0:01:26]} 27. Qd6 {[%clk 0:01:18]}  Qd7 {[%clk 0:01:19]} 28. Rf8+ {[%clk 0:01:11]}  Nxf8 {[%clk 0:01:16]} 29. exf8=Q+ {[%clk 0:01:11]}  Rxf8 {[%clk 0:01:16]} 30. Qxf8+ {[%clk 0:01:10]}  Kb7 {[%clk 0:01:17]} 31. Qe7 {[%clk 0:01:11]}  Qxe7 {[%clk 0:01:16]} 32. Bxe7 {[%clk 0:01:11]} 1-0


[Site "https://www.chess.com"]